bitfinex-derivatives/quotes_BTCF0:USTF0_20250211
["timestamp","ask_amount","ask_price","bid_price","bid_amount"]
[1739302296959,0.3100956,95200.0,95190.0,0.19138159]
[1739302297266,0.1,95200.0,95190.0,0.19138159]
[1739302297448,0.2100976,95199.0,95190.0,0.19138159]
[1739302297650,0.1,95200.0,95190.0,0.19138159]
[1739302297852,0.1,95200.0,95194.0,0.2101068]
[1739302298054,0.1,95200.0,95195.0,0.05586046]
[1739302298258,0.1,95200.0,95194.0,0.2101068]
[1739302298759,0.1,95200.0,95199.0,0.3608]
[1739302299960,0.1,95200.0,95199.0,0.3618]
[1739302300663,0.7068,95236.0,95217.0,0.2100553]
[1739302300860,0.2100315,95229.0,95220.0,0.19138159]
[1739302301456,0.1703,95235.0,95234.0,0.2100197]
[1739302301655,0.1703,95235.0,95222.0,0.2100445]
[1739302302161,0.1703,95235.0,95232.0,0.2100235]
[1739302302354,0.1703,95235.0,95229.0,0.3608]
[1739302302564,0.0892,95240.0,95237.0,0.2100116]
[1739302302756,0.2099913,95247.0,95237.0,0.5708116]
[1739302303154,0.1703,95251.0,95241.0,0.2100029]
[1739302303466,0.1703,95251.0,95238.0,0.2100104]
[1739302303651,0.3802835,95251.0,95238.0,0.2100104]
[1739302303854,0.2099862,95250.0,95238.0,0.2100104]
[1739302304258,0.2099862,95250.0,95237.0,0.3608]
[1739302304259,0.1703,95251.0,95245.0,0.2099937]
[1739302304461,0.1703,95251.0,95246.0,0.3608]
[1739302304860,0.1703,95251.0,95248.0,0.2099871]
[1739302305060,0.0918,95259.0,95254.0,0.2099741]
[1739302306267,0.2099511,95266.0,95256.0,0.2099709]
[1739302306662,0.179,95269.0,95262.0,0.3608]
[1739302306864,0.0876,95279.0,95262.0,0.3608]
[1739302307256,0.15362752,95280.0,95269.0,0.19138159]
[1739302307462,0.15362752,95280.0,95271.0,0.2099363]
[1739302308479,0.7216,95272.0,95261.0,0.00015745]
[1739302308671,0.2099734,95255.0,95230.0,0.2100272]
[1739302308966,0.3608,95231.0,95226.0,0.2100368]
[1739302309166,0.3608,95231.0,95218.0,0.3608]
[1739302309167,0.3608,95231.0,95219.0,0.2100525]
[1739302309380,0.3608,95231.0,95218.0,0.3608]
[1739302309381,0.2100448,95223.0,95205.0,0.0859]
[1739302309558,0.19138159,95220.0,95205.0,0.0859]
[1739302309765,0.13123433,95213.0,95202.0,0.2100886]
[1739302309960,0.3608,95218.0,95198.0,0.2100978]
[1739302310155,0.3608,95218.0,95203.0,0.00015754]
[1739302310358,0.00015717,95222.0,95214.0,0.2100623]
[1739302310656,0.3558,95231.0,95220.0,0.2100502]
[1739302310657,0.5658279,95231.0,95220.0,0.2100502]
[1739302310861,0.3558,95231.0,95224.0,0.2100397]
[1739302311070,0.3558,95231.0,95217.0,0.3608]
[1739302311071,0.3558,95231.0,95225.0,0.2100377]
[1739302311369,0.3558,95231.0,95217.0,0.5708558]
[1739302311556,0.3558,95231.0,95220.0,0.19138159]
[1739302311755,0.3558,95231.0,95229.0,0.2100293]
[1739302312469,0.3558,95231.0,95221.0,0.2100469]
[1739302312659,0.3558,95231.0,95223.0,0.210043]
[1739302312970,0.3558,95231.0,95226.0,0.210037]
[1739302313863,0.3558,95231.0,95227.0,0.2100336]
[1739302314064,0.3558,95231.0,95229.0,0.004]
[1739302314956,0.3558,95231.0,95229.0,0.2100294]
[1739302315863,0.3558,95231.0,95229.0,0.2130294]
[1739302316569,0.3608,95239.0,95229.0,0.003]
[1739302316770,0.2099989,95244.0,95238.0,0.2100108]
[1739302317072,0.2100178,95235.0,95229.0,0.2130295]
[1739302317262,0.2100178,95235.0,95231.0,0.00015754]
[1739302317458,0.3608,95232.0,95231.0,0.00015754]
[1739302318061,0.3608,95232.0,95210.0,0.00112]
[1739302318364,0.2100705,95211.0,95191.0,0.210114]
[1739302318564,0.3608,95202.0,95184.0,0.3608]
[1739302318755,0.3608,95202.0,95192.0,0.2101115]
[1739302318959,0.5708914,95202.0,95192.0,0.2101115]
[1739302319159,0.2100946,95201.0,95192.0,0.2101115]
[1739302319366,0.00015754,95207.0,95195.0,0.3608]
[1739302319574,0.00015754,95207.0,95206.0,0.2100815]
[1739302320367,0.3608,95214.0,95213.0,0.2100661]
[1739302320557,0.2100423,95224.0,95217.0,0.2100555]
[1739302321370,0.5708454,95223.0,95217.0,0.2100555]
[1739302321563,0.2100496,95221.0,95217.0,0.2100555]
[1739302321966,0.2100496,95221.0,95218.0,0.2100545]
[1739302322167,0.2100496,95221.0,95219.0,0.210052]
[1739302322462,0.3618,95223.0,95222.0,0.2100462]
[1739302322865,0.001,95223.0,95222.0,0.2100462]
[1739302323663,0.001,95223.0,95213.0,0.3608]
[1739302323664,0.3608,95226.0,95225.0,0.2100396]
[1739302323968,0.1748,95230.0,95229.0,0.2100308]
[1739302324979,0.1748,95230.0,95229.0,0.22293]
[1739302325270,0.1788,95230.0,95229.0,0.0128992]
[1739302326367,0.004,95230.0,95229.0,0.0128992]
[1739302326968,0.003,95230.0,95229.0,0.0128992]
[1739302327671,0.003,95230.0,95229.0,0.05314914]
[1739302327878,0.3608,95230.0,95210.0,0.00015754]
[1739302328179,0.2100703,95212.0,95211.0,0.06600758]
[1739302328477,0.2100703,95212.0,95211.0,0.05315394]
[1739302328873,0.0898,95217.0,95210.0,0.00015754]
[1739302329075,0.0898,95217.0,95211.0,0.2100687]
[1739302329378,0.0898,95217.0,95212.0,0.05270631]
[1739302329579,0.2998576,95217.0,95213.0,0.05270631]
[1739302329873,0.2998576,95217.0,95214.0,0.05270631]
[1739302330274,0.2998576,95217.0,95215.0,0.05270631]
[1739302330683,0.2998576,95217.0,95216.0,0.05270631]
[1739302331074,0.3608,95218.0,95216.0,0.26276581]
[1739302331381,0.3608,95218.0,95217.0,0.06548191]
[1739302331573,0.0896,95229.0,95222.0,0.2100461]
[1739302331769,0.2100334,95228.0,95224.0,0.2100414]
[1739302331975,0.2100356,95227.0,95225.0,0.05270631]
[1739302332376,0.0896,95229.0,95227.0,0.2100342]
[1739302332572,0.3608,95230.0,95228.0,0.2100318]
[1739302332870,0.3608,95230.0,95229.0,0.01310962]
[1739302333074,0.3608,95230.0,95229.0,0.01310956]
[1739302333884,0.3618,95230.0,95229.0,0.01310956]
[1739302334883,0.3628,95230.0,95229.0,0.01310956]
[1739302335077,0.3628,95230.0,95228.0,0.2100318]
[1739302335275,0.3628,95230.0,95229.0,0.01307831]
[1739302335674,0.210031,95229.0,95213.0,0.0869]
[1739302335872,0.00260001,95230.0,95223.0,0.3608]
[1739302336076,0.3608,95260.0,95251.0,0.2099816]
[1739302336382,0.0873,95262.0,95252.0,0.37382951]
[1739302336581,0.3608,95270.0,95261.0,0.3608]
[1739302336878,0.2099549,95264.0,95262.0,0.01302951]
[1739302337070,0.2099549,95264.0,95263.0,0.01302951]
[1739302338084,0.2109549,95264.0,95259.0,0.2099629]
[1739302338684,0.001,95264.0,95250.0,0.19138159]
[1739302339396,0.001,95264.0,95240.0,0.19138159]
[1739302339397,0.3608,95261.0,95240.0,0.19138159]
[1739302339584,0.3608,95261.0,95237.0,0.52826]
[1739302339779,0.2099744,95255.0,95245.0,0.2099947]
[1739302339978,0.0837,95260.0,95237.0,0.5271]
[1739302339979,0.2099897,95248.0,95237.0,0.44508]
[1739302340179,0.2099897,95248.0,95239.0,0.2100074]
[1739302340379,0.2099897,95248.0,95240.0,0.2100056]
[1739302341288,0.2099897,95248.0,95246.0,0.01115754]
[1739302342585,0.3608,95250.0,95218.0,0.3608]
[1739302342788,0.3608,95232.0,95218.0,0.3608]
[1739302342993,0.2100384,95226.0,95211.0,0.21007]
[1739302343287,0.2100639,95214.0,95213.0,0.18824638]
[1739302343589,0.17938,95225.0,95213.0,0.18824638]
[1739302343787,0.00015754,95223.0,95213.0,0.18824638]
[1739302343986,0.17938,95225.0,95224.0,0.00984246]
[1739302344690,0.001,95225.0,95213.0,0.20724638]
[1739302344878,0.001,95225.0,95224.0,0.2100402]
[1739302345278,0.2100633,95215.0,95213.0,0.20624638]
[1739302345478,0.3608,95214.0,95213.0,0.20624638]
[1739302345988,0.3608,95214.0,95213.0,0.10624638]
[1739302345989,0.4508,95214.0,95213.0,0.10624638]
[1739302346296,0.4508,95214.0,95213.0,0.004]
[1739302346489,0.4488,95214.0,95208.0,0.2100751]
[1739302347285,0.001,95214.0,95213.0,0.012]
[1739302347794,0.002,95214.0,95213.0,0.008]
[1739302348387,0.002,95214.0,95213.0,0.01900465]
[1739302348693,0.3608,95236.0,95220.0,0.19138159]
[1739302348890,0.3608,95236.0,95227.0,0.2100335]
[1739302349085,0.3608,95236.0,95229.0,0.2100304]
[1739302349287,0.36136001,95245.0,95234.0,0.3608]
[1739302349480,0.3608,95256.0,95235.0,0.085]
[1739302349481,0.209977,95254.0,95235.0,0.085]
[1739302349687,0.209977,95254.0,95236.0,0.2100154]
[1739302349993,0.209977,95254.0,95237.0,1.5]
[1739302350191,0.209977,95254.0,95235.0,0.085]
[1739302350593,0.15662752,95243.0,95240.0,0.2100056]
[1739302350890,0.003,95243.0,95240.0,0.2100056]
[1739302351091,0.15362752,95244.0,95240.0,0.2100056]
[1739302351693,0.001,95243.0,95240.0,0.2100056]
[1739302352288,0.15562752,95244.0,95240.0,0.2100056]
[1739302352488,0.15562752,95244.0,95243.0,0.3608]
[1739302353793,0.002,95244.0,95243.0,0.3608]
[1739302353992,0.001,95244.0,95242.0,0.5708001]
[1739302354295,0.003,95243.0,95242.0,0.5708001]
[1739302354797,0.001,95244.0,95242.0,0.5708001]
[1739302354993,0.005,95244.0,95242.0,0.5708001]
[1739302355593,0.001,95244.0,95242.0,0.5708001]
[1739302355796,0.002,95243.0,95242.0,0.2100001]
[1739302356098,0.15362752,95257.0,95255.0,0.2099736]
[1739302356597,0.15362752,95257.0,95256.0,0.3608]
[1739302356794,0.15362752,95257.0,95255.0,0.2099736]
[1739302357396,0.15362752,95262.0,95255.0,0.2099736]
[1739302357588,0.3608,95256.0,95242.0,0.001]
[1739302357891,0.3608,95247.0,95239.0,0.00015754]
[1739302358195,0.2100066,95240.0,95239.0,0.00015754]
[1739302358399,0.2557,95246.0,95239.0,0.00015754]
[1739302358592,0.210005,95241.0,95239.0,0.00015754]
[1739302359495,0.3608,95240.0,95203.0,0.3608]
[1739302359693,0.3608,95240.0,95205.0,0.2100826]
[1739302359694,0.3608,95212.0,95205.0,0.2100826]
[1739302360292,0.3608,95212.0,95203.0,0.3608]
[1739302360494,0.2100776,95208.0,95203.0,0.3608]
[1739302360899,0.3608,95212.0,95203.0,0.3678]
[1739302361396,0.3638,95212.0,95203.0,0.3678]
[1739302361596,0.3638,95212.0,95203.0,0.5778867]
[1739302362099,0.3638,95212.0,95204.0,0.210085]
[1739302362296,0.2100753,95209.0,95204.0,0.210085]
[1739302363002,0.2100753,95209.0,95206.0,0.2100795]
[1739302363392,0.0884,95211.0,95198.0,0.00015754]
[1739302363700,0.5708971,95199.0,95198.0,0.00015754]
[1739302363996,0.2101125,95192.0,95191.0,0.25203735]
[1739302364198,0.2101125,95192.0,95173.0,0.3608]
[1739302364199,0.0948,95192.0,95173.0,0.3608]
[1739302364391,0.57093,95185.0,95174.0,0.01300568]
[1739302364595,0.57093,95185.0,95180.0,0.2101379]
[1739302364996,0.3608,95185.0,95180.0,0.2101379]
[1739302365391,0.3608,95185.0,95173.0,0.22531184]
[1739302365604,0.2101407,95180.0,95173.0,0.22531184]
[1739302365796,0.2101513,95175.0,95173.0,0.01515754]
[1739302366103,0.0946,95174.0,95173.0,0.01515754]
[1739302366905,0.0836,95174.0,95173.0,0.00715754]
[1739302367797,0.0846,95174.0,95173.0,0.02215754]
[1739302368494,0.0856,95174.0,95173.0,0.02215754]
[1739302369097,0.0856,95174.0,95173.0,0.23231204]
[1739302369699,0.3608,95187.0,95173.0,0.38295754]
[1739302370005,0.3608,95187.0,95186.0,0.2101258]
[1739302370199,0.00015754,95192.0,95191.0,0.2101147]
[1739302370591,0.3608,95205.0,95202.0,0.2100895]
[1739302370994,0.3608,95205.0,95203.0,0.210087]
[1739302371803,0.3678,95205.0,95203.0,0.210087]
[1739302372406,0.3698,95205.0,95203.0,0.210087]
[1739302373108,0.3708,95205.0,95203.0,0.210087]
[1739302373700,0.3748,95205.0,95203.0,0.210087]
[1739302373901,0.014,95205.0,95203.0,0.210087]
[1739302374506,0.012,95205.0,95203.0,0.210087]
[1739302374904,0.011,95205.0,95203.0,0.210087]
[1739302375413,0.009,95205.0,95203.0,0.210087]
[1739302375704,0.012,95205.0,95203.0,0.210087]
[1739302376012,0.011,95205.0,95203.0,0.210087]
[1739302376204,0.013,95205.0,95203.0,0.210087]
[1739302377306,0.002,95205.0,95203.0,0.210087]
[1739302377502,0.009,95205.0,95203.0,0.211087]
[1739302378503,0.007,95205.0,95203.0,0.213087]
[1739302379010,0.3608,95210.0,95208.0,0.2100765]
[1739302379212,0.00015754,95214.0,95203.0,0.005]
[1739302379409,0.00015754,95214.0,95212.0,0.2100668]
[1739302380515,0.00015754,95214.0,95199.0,0.3608]
[1739302380516,0.00015754,95214.0,95199.0,0.2100967]
[1739302380810,0.002,95205.0,95204.0,0.2100861]
[1739302381403,0.3608,95213.0,95202.0,0.3608]
[1739302381404,0.00815754,95214.0,95212.0,0.2110684]
[1739302382202,0.01115754,95214.0,95212.0,0.2110684]
[1739302382416,0.0888,95235.0,95234.0,0.2100199]
[1739302383113,0.0888,95235.0,95220.0,0.00116]
[1739302383314,0.5708414,95225.0,95219.0,0.2100522]
[1739302383519,0.5708414,95225.0,95210.0,0.01099125]
[1739302383520,0.001,95214.0,95213.0,0.2100662]
[1739302384818,0.3608,95225.0,95212.0,0.00015754]
[1739302385003,0.3598,95225.0,95212.0,0.00015754]
[1739302385208,0.2956327,95229.0,95222.0,0.2100463]
[1739302385408,0.0856,95229.0,95222.0,0.2100463]
[1739302385720,0.2100356,95227.0,95215.0,0.3608]
[1739302386108,0.2100356,95227.0,95223.0,0.2100425]
[1739302386813,0.44696001,95229.0,95217.0,0.2100572]
[1739302387016,0.3608,95221.0,95212.0,0.36095754]
[1739302387208,0.44700001,95229.0,95213.0,0.2100647]
[1739302387510,0.4564,95229.0,95222.0,0.001]
[1739302387711,0.666431,95229.0,95224.0,0.2100418]
[1739302388112,0.002,95227.0,95224.0,0.2100418]
[1739302388422,0.3608,95226.0,95225.0,0.00110888]
[1739302388720,0.570838,95226.0,95225.0,0.00110888]
[1739302389114,0.570838,95226.0,95225.0,0.00143181]
[1739302389820,0.572838,95226.0,95225.0,0.00143181]
[1739302391122,0.3718,95226.0,95225.0,0.21247151]
[1739302391316,0.3738,95226.0,95225.0,0.21247151]
[1739302391807,0.3628,95226.0,95225.0,0.21147151]
[1739302392008,0.3738,95226.0,95225.0,0.21247151]
[1739302392414,0.3748,95226.0,95225.0,0.21247151]
[1739302393118,0.014,95226.0,95225.0,0.21247151]
[1739302393313,0.014,95226.0,95225.0,0.57327151]
[1739302393724,0.014,95226.0,95225.0,0.21247151]
[1739302394914,0.014,95226.0,95225.0,0.21302757]
[1739302395622,0.014,95226.0,95225.0,0.21358363]
[1739302396020,0.014,95226.0,95225.0,0.57438363]
[1739302397221,0.007,95226.0,95225.0,0.57370332]
[1739302397615,0.007,95226.0,95225.0,0.21290332]
[1739302398016,0.005,95226.0,95225.0,0.21290332]
[1739302398219,0.002,95226.0,95225.0,0.21290332]
[1739302398724,0.0888,95235.0,95234.0,0.2100201]
[1739302399325,0.0888,95235.0,95234.0,0.21288372]
[1739302399818,0.2988179,95235.0,95234.0,0.00286362]
[1739302400216,0.2100319,95229.0,95224.0,0.2100411]
[1739302400416,0.12714355,95234.0,95205.0,0.4133209]
[1739302400620,0.2100347,95228.0,95210.0,0.0525182]
[1739302400818,0.3000323,95229.0,95213.0,0.2100648]
[1739302401018,0.2100342,95228.0,95226.0,0.2100358]
[1739302401220,0.3598,95227.0,95226.0,0.2100377]
[1739302401423,0.1058,95235.0,95217.0,0.3608]
[1739302401424,0.017,95235.0,95217.0,0.3608]
[1739302401718,0.017,95235.0,95234.0,0.2100201]
[1739302401719,0.015,95235.0,95234.0,0.2100201]
[1739302402020,0.2100149,95237.0,95232.0,0.2100227]
[1739302402220,0.2100149,95237.0,95221.0,0.0525119]
[1739302402421,0.15362752,95236.0,95234.0,0.210018]
[1739302402726,0.15362752,95236.0,95235.0,0.2100179]
[1739302403226,0.15362752,95236.0,95235.0,0.21120682]
[1739302404024,0.15562752,95236.0,95235.0,0.21120682]
[1739302404329,0.16762752,95236.0,95235.0,0.21220682]
[1739302405015,0.15562752,95236.0,95235.0,0.21144971]
[1739302405216,0.014,95236.0,95235.0,0.00243181]
[1739302405416,0.014,95236.0,95235.0,0.21244971]
[1739302406225,0.3748,95236.0,95235.0,0.21244971]
[1739302406617,0.3698,95236.0,95235.0,0.21244971]
[1739302406930,0.009,95236.0,95235.0,0.21244971]
[1739302407117,0.3678,95236.0,95235.0,0.21244971]
[1739302407317,0.3678,95236.0,95235.0,0.21144971]
[1739302407318,0.3628,95236.0,95235.0,0.21144971]
[1739302407518,0.3698,95236.0,95235.0,0.21244971]
[1739302407715,0.009,95236.0,95235.0,0.21244971]
[1739302408124,0.3698,95236.0,95235.0,0.21244971]
[1739302408334,0.009,95236.0,95235.0,0.21244971]
[1739302408828,0.3698,95236.0,95235.0,0.21244971]
[1739302409023,0.3698,95236.0,95235.0,0.00243181]
[1739302409327,0.5798157,95236.0,95235.0,0.00243181]
[1739302409532,0.3698,95236.0,95228.0,0.2100316]
[1739302409831,0.2100223,95233.0,95228.0,0.2100316]
[1739302410529,0.58337571,95236.0,95235.0,0.001]
[1739302410729,0.5828157,95236.0,95235.0,0.001]
[1739302411026,0.3708,95236.0,95212.0,0.00015754]
[1739302411232,0.3608,95222.0,95212.0,0.00015754]
[1739302411532,0.3608,95213.0,95201.0,0.00108]
[1739302411728,0.3608,95203.0,95190.0,0.0932]
[1739302412034,0.3598,95203.0,95190.0,0.28387256]
[1739302412326,0.3598,95203.0,95200.0,0.01083888]
[1739302412525,0.3598,95203.0,95197.0,0.31444144]
[1739302413526,0.3608,95203.0,95202.0,0.021]
[1739302414029,0.5708885,95203.0,95202.0,0.021]
[1739302414232,0.5698885,95203.0,95202.0,0.007]
[1739302414440,0.5708885,95203.0,95202.0,0.007]
[1739302414631,0.3608,95203.0,95197.0,0.32944144]
[1739302414935,0.2100995,95198.0,95197.0,0.33644144]
[1739302415233,0.2060995,95198.0,95197.0,0.31444144]
[1739302415429,0.210115,95191.0,95190.0,0.00015754]
[1739302415625,0.570915,95191.0,95190.0,0.00015754]
[1739302415827,0.570915,95191.0,95179.0,0.25166616]
[1739302415828,0.2101393,95180.0,95179.0,0.25166616]
[1739302416019,0.2101393,95180.0,95171.0,0.31444144]
[1739302416020,0.3608,95180.0,95171.0,0.31552144]
[1739302416226,0.3608,95172.0,95153.0,0.3608]
[1739302416422,0.5709768,95163.0,95153.0,0.3608]
[1739302416623,0.5709768,95163.0,95145.0,0.96850484]
[1739302416624,0.2101939,95156.0,95145.0,0.96850484]
[1739302416838,0.3608,95148.0,95145.0,0.96734484]
[1739302417039,0.3588,95148.0,95145.0,0.96734484]
[1739302417426,0.3508,95148.0,95145.0,0.96734484]
[1739302417632,0.3468,95148.0,95145.0,0.96734484]
[1739302417833,0.3608,95151.0,95145.0,0.96734484]
[1739302418127,0.3608,95151.0,95145.0,0.97034484]
[1739302418437,0.3608,95151.0,95145.0,0.97134484]
[1739302418938,0.2102122,95147.0,95145.0,0.97134484]
[1739302419526,0.0917,95146.0,95145.0,0.004]
[1739302419726,0.2072165,95145.0,95141.0,0.00015763]
[1739302419927,0.35935798,95142.0,95141.0,0.00015763]
[1739302420334,0.35635798,95142.0,95141.0,0.00015763]
[1739302421141,0.36635798,95142.0,95141.0,0.00015763]
[1739302421537,0.36935798,95142.0,95141.0,0.00015763]
[1739302423441,0.38045638,95142.0,95141.0,0.00015763]
[1739302424036,0.36935798,95142.0,95141.0,0.00015763]
[1739302425845,0.2102518,95130.0,95122.0,0.3608]
[1739302426338,0.3608,95132.0,95122.0,0.3608]
[1739302426943,0.001,95130.0,95122.0,0.3608]
[1739302427139,0.001,95130.0,95122.0,0.3638]
[1739302429136,0.2102537,95129.0,95122.0,0.3638]
[1739302429441,0.2102555,95128.0,95122.0,0.3648]
[1739302429639,0.5710651,95123.0,95122.0,0.001]
[1739302429841,0.5710651,95123.0,95122.0,0.004]
[1739302430046,0.5710651,95123.0,95122.0,0.003]
[1739302430352,0.5710651,95123.0,95122.0,0.0044293]
[1739302430946,0.5720651,95123.0,95122.0,0.0044293]
[1739302431936,0.5720651,95123.0,95122.0,0.00467335]
[1739302437653,0.2102762,95118.0,95117.0,1e-08]
[1739302438252,0.2103123,95102.0,95100.0,0.1]
[1739302438445,0.3608,95101.0,95100.0,0.1]
[1739302438647,0.2103399,95090.0,95081.0,0.091]
[1739302438950,0.3608,95086.0,95081.0,0.091]
[1739302439851,0.3598,95086.0,95081.0,0.091]
[1739302440156,0.3598,95086.0,95075.0,0.0903]
[1739302440349,0.3598,95086.0,95074.0,0.00015771]
[1739302440350,0.3578,95077.0,95074.0,0.00015771]
[1739302440747,0.2103712,95076.0,95074.0,0.00015771]
[1739302441045,0.2093712,95076.0,95074.0,0.00015771]
[1739302441650,0.2998712,95076.0,95074.0,0.00015771]
[1739302441845,0.2988712,95076.0,95074.0,0.00015771]
[1739302442550,0.2998712,95076.0,95074.0,0.00115771]
[1739302443354,0.31119242,95076.0,95074.0,0.00115771]
[1739302443561,0.2104038,95061.0,95036.0,0.3608]
[1739302443852,0.12742246,95050.0,95036.0,0.3608]
[1739302444052,0.2104381,95045.0,95025.0,0.1842]
[1739302444247,0.2104682,95032.0,95025.0,0.1842]
[1739302444653,0.3608,95037.0,95025.0,0.1842]
[1739302445049,0.3608,95037.0,95024.0,0.3608]
[1739302445256,0.2104722,95030.0,95024.0,0.3608]
[1739302445455,0.2104722,95030.0,95027.0,0.00142911]
[1739302446463,0.2104722,95030.0,95028.0,0.00142911]
[1739302446464,0.2124722,95030.0,95028.0,0.00142911]
[1739302446952,0.2114722,95030.0,95028.0,0.00142911]
[1739302447147,0.2114722,95030.0,95029.0,0.00168386]
[1739302448447,0.3608,95037.0,95029.0,0.00168386]
[1739302448650,0.001,95030.0,95029.0,0.00168386]
[1739302449247,0.2106116,95038.0,95029.0,1.50168386]
[1739302449458,0.2106116,95038.0,95034.0,0.3608]
[1739302449757,0.2104561,95037.0,95034.0,0.3608]
[1739302450057,0.2104561,95037.0,95035.0,0.00168386]
[1739302450652,0.0894,95036.0,95035.0,0.00168386]
[1739302450850,0.0894,95036.0,95011.0,0.4557]
[1739302451052,0.210493,95020.0,95011.0,0.4557]
[1739302451359,0.210493,95020.0,95003.0,0.09878618]
[1739302451754,0.210493,95020.0,95003.0,0.0879]
[1739302453157,0.0948,95024.0,95003.0,0.0879]
[1739302453360,0.2105207,95008.0,95003.0,0.0879]
[1739302453662,0.5713284,95004.0,95003.0,0.0879]
[1739302453858,0.2105351,95001.0,95000.0,0.1]
[1739302455065,0.2115351,95001.0,95000.0,0.1]
[1739302456153,0.2125351,95001.0,95000.0,0.1]
[1739302456356,0.2232623,95001.0,95000.0,0.1]
[1739302456557,0.3095023,95001.0,95000.0,0.1]
[1739302456756,0.3125023,95001.0,95000.0,0.1]
[1739302457354,0.3225023,95001.0,95000.0,0.1]
[1739302458365,0.3225023,95001.0,95000.0,0.0170801]
[1739302459066,0.30349347,95001.0,94966.0,0.3608]
[1739302459269,0.2105959,94974.0,94964.0,0.0886]
[1739302459469,0.3608,94972.0,94964.0,0.0886]
[1739302459763,0.210578,94982.0,94975.0,0.2105927]
[1739302460452,0.210578,94982.0,94966.0,0.3608]
[1739302460453,0.00015789,94988.0,94970.0,0.19152627]
[1739302460658,0.001,95001.0,94987.0,0.3608]
[1739302460965,0.002,95001.0,94999.0,0.2105388]
[1739302461166,0.001,95001.0,95000.0,0.3608]
[1739302461667,0.001,95001.0,94998.0,0.3608]
[1739302462161,0.01,95001.0,94999.0,0.00168287]
[1739302462762,0.2205362,95001.0,94999.0,0.00168287]
[1739302462967,0.2235362,95001.0,95000.0,0.00168287]
[1739302463355,0.013,95001.0,95000.0,0.00168287]
[1739302463664,0.012,95001.0,95000.0,0.36248287]
[1739302464563,0.014,95001.0,95000.0,0.00168287]
[1739302465055,0.2105338,95002.0,95000.0,0.00168287]
[1739302465261,0.012,95001.0,95000.0,0.00168287]
[1739302465469,0.00015789,95010.0,95000.0,0.30168287]
[1739302465763,0.00056001,95015.0,95008.0,0.3608]
[1739302465955,0.37182544,95034.0,95008.0,0.3608]
[1739302466161,0.37182544,95034.0,95021.0,0.00168287]
[1739302466162,0.3608,95034.0,95021.0,0.00168287]
[1739302466675,0.3608,95034.0,95027.0,0.00227394]
[1739302466676,0.2104717,95030.0,95027.0,0.00227394]
[1739302467364,0.2104717,95030.0,95028.0,0.00286501]
[1739302467566,0.3758,95034.0,95028.0,0.00286501]
[1739302467765,0.5862632,95034.0,95028.0,0.00286501]
[1739302467968,0.210468,95032.0,95031.0,0.00311664]
[1739302468157,0.571268,95032.0,95031.0,0.00311664]
[1739302469862,0.577268,95032.0,95031.0,0.00411664]
[1739302470273,0.3668,95032.0,95001.0,0.095]
[1739302470575,0.5712952,95019.0,95001.0,0.095]
[1739302470964,0.2104993,95018.0,95000.0,0.0901]
[1739302471165,0.3608,95002.0,95000.0,0.0901]
[1739302471374,0.5713337,95002.0,95000.0,0.0901]
[1739302471561,0.3608,95002.0,94990.0,0.19152627]
[1739302471762,0.3608,94994.0,94988.0,0.0928]
[1739302471970,0.5713507,94994.0,94988.0,0.0928]
[1739302472174,0.3608,94994.0,94988.0,0.0928]
[1739302473068,0.3608,94994.0,94982.0,0.00015789]
[1739302473069,0.2105694,94986.0,94982.0,0.00015789]
[1739302473269,0.210553,94993.0,94982.0,0.00015789]
[1739302473466,0.3598,94994.0,94988.0,0.002]
[1739302473768,0.2105616,94990.0,94988.0,0.002]
[1739302473978,0.2105654,94988.0,94982.0,0.00015789]
[1739302474177,0.3608,94983.0,94982.0,0.00015789]
[1739302474481,0.3608,94983.0,94982.0,0.00134591]
[1739302475268,0.3608,94983.0,94982.0,0.00159224]
[1739302476173,0.001,94983.0,94982.0,0.00759224]
[1739302476672,0.001,94983.0,94982.0,0.05923995]
[1739302478967,0.211575,94983.0,94982.0,0.05923995]
[1739302479366,0.572375,94983.0,94982.0,0.05923995]
[1739302479772,0.572375,94983.0,94982.0,0.00759224]
[1739302480775,0.574375,94983.0,94982.0,0.00359224]
[1739302481074,0.574375,94983.0,94982.0,0.00418933]
[1739302481969,0.37587883,94983.0,94955.0,0.01074801]
[1739302482170,0.3608,94963.0,94952.0,0.08492]
[1739302482371,0.3608,94963.0,94962.0,0.13983086]
[1739302483175,0.3608,94963.0,94962.0,0.14383086]
[1739302483479,0.3618,94963.0,94962.0,0.14983086]
[1739302483879,0.3628,94963.0,94962.0,0.0981]
[1739302484673,0.002,94963.0,94962.0,0.0981]
[1739302484875,0.002,94963.0,94962.0,0.51063967]
[1739302485271,0.002,94963.0,94962.0,0.87143967]
[1739302485670,0.002,94963.0,94962.0,0.72126127]
[1739302485876,0.00015789,94972.0,94971.0,0.2106016]
[1739302486071,0.00015789,94972.0,94971.0,0.62314127]
[1739302486383,0.15537161,94975.0,94971.0,0.41253967]
[1739302486577,0.15537161,94975.0,94972.0,0.05173967]
[1739302486772,0.15537161,94975.0,94973.0,0.05173967]
[1739302487083,0.15537161,94975.0,94974.0,0.05173967]
[1739302487291,0.15537161,94975.0,94974.0,0.26233467]
[1739302488783,0.15537161,94975.0,94974.0,0.26433467]
[1739302489287,0.001,94975.0,94974.0,0.26433467]
[1739302489486,0.001,94975.0,94974.0,0.212595]
[1739302489986,0.001,94975.0,94974.0,0.217732]
[1739302494590,0.001,94975.0,94974.0,0.007137]
[1739302497504,0.00015789,94984.0,94974.0,0.307137]
[1739302497710,0.15537161,94995.0,94983.0,0.3608]
[1739302497902,1e-08,94995.0,94994.0,0.3608]
[1739302498809,1e-08,94995.0,94994.0,0.361937]
[1739302499408,0.01400001,94995.0,94994.0,0.362937]
[1739302500113,0.01400001,94995.0,94994.0,0.002137]
[1739302500610,0.014,94995.0,94994.0,0.002137]
[1739302501196,0.009,94995.0,94994.0,0.002137]
[1739302501603,0.2851,94995.0,94994.0,0.002137]
[1739302501808,0.2771,94995.0,94994.0,0.001137]
[1739302502004,0.2851,94995.0,94994.0,0.002137]
[1739302502309,0.2841,94995.0,94994.0,0.002137]
[1739302504408,0.2761,94995.0,94994.0,0.001137]